[Event "NJSK 2022 Jeugd C"]
[Site "Almelo, Netherlands"]
[Date "2022.05.05"]
[Round "6.7"]
[White "Dekker, Thiemen"]
[Black "Terlouw, Wouter"]
[Result "1-0"]
[TimeControl "90min + 30sec/move"]
[WhiteElo "1935"]
[BlackElo "1578"]

1. e4 {[%clk 01:30:59]} c5 {[%clk 01:30:54]} {[%emt 00:00:07]} 2. Nf3 {[%clk
01:31:26]} {[%emt 00:00:03]} Nc6 {[%clk 01:31:20]} {[%emt 00:00:04]} 3. d4
{[%clk 01:31:52]} {[%emt 00:00:04]} cxd4 {[%clk 01:31:46]} {[%emt 00:00:04]} 4.
Nxd4 {[%clk 01:32:15]} {[%emt 00:00:07]} g6 {[%clk 01:32:13]} {[%emt 00:00:03]}
5. c4 {[%clk 01:32:29]} {[%emt 00:00:15]} Bg7 {[%clk 01:32:36]} {[%emt
00:00:08]} 6. Be3 {[%clk 01:32:55]} {[%emt 00:00:04]} Nf6 {[%clk 01:33:02]}
{[%emt 00:00:04]} 7. Nc3 {[%clk 01:33:20]} {[%emt 00:00:05]} Ng4 {[%clk
01:33:27]} {[%emt 00:00:05]} 8. Qxg4 {[%clk 01:33:45]} {[%emt 00:00:04]} Nxd4
{[%clk 01:33:51]} {[%emt 00:00:07]} 9. Qd1 {[%clk 01:34:11]} {[%emt 00:00:04]}
Ne6 {[%clk 01:34:16]} {[%emt 00:00:05]} 10. Rc1 {[%clk 01:34:38]} {[%emt
00:00:03]} Qa5 {[%clk 01:34:42]} {[%emt 00:00:05]} 11. a3 {[%clk 01:31:15]}
{[%emt 00:03:52]} d6 {[%clk 01:33:47]} {[%emt 00:01:25]} 12. Be2 {[%clk
01:30:09]} {[%emt 00:01:36]} Bd7 {[%clk 01:33:07]} {[%emt 00:01:10]} 13. O-O
{[%clk 01:29:41]} {[%emt 00:00:56]} Bc6 {[%clk 01:32:26]} {[%emt 00:01:13]} 14.
f3 {[%clk 01:29:07]} {[%emt 00:01:04]} O-O {[%clk 01:32:10]} {[%emt 00:00:46]}
15. Qd2 {[%clk 01:25:19]} {[%emt 00:04:17]} Rfe8 {[%clk 01:31:08]} {[%emt
00:01:32]} 16. Rfd1 {[%clk 01:22:21]} {[%emt 00:03:28]} Ba4 {[%clk 01:26:24]}
{[%emt 00:05:11]} 17. b4 {[%clk 01:18:24]} {[%emt 00:04:31]} Qa6 {[%clk
01:23:32]} {[%emt 00:03:21]} 18. c5 {[%clk 01:10:22]} {[%emt 00:08:33]} Qc6
{[%clk 01:20:30]} {[%emt 00:03:32]} 19. b5 {[%clk 01:07:50]} {[%emt 00:03:02]}
Bxc3 {[%clk 01:20:00]} {[%emt 00:01:00]} 20. Rxc3 {[%clk 01:05:39]} {[%emt
00:02:40]} Bxb5 {[%clk 01:18:59]} {[%emt 00:01:32]} 21. cxd6 {[%clk 01:04:45]}
{[%emt 00:01:24]} Qa6 {[%clk 01:19:09]} {[%emt 00:00:19]} 22. Bxb5 {[%clk
01:03:59]} {[%emt 00:01:18]} Qxb5 {[%clk 01:19:23]} {[%emt 00:00:16]} 23. d7
{[%clk 01:03:29]} {[%emt 00:00:59]} Red8 {[%clk 01:19:37]} {[%emt 00:00:16]} 24.
f4 {[%clk 01:00:31]} {[%emt 00:03:28]} b6 {[%clk 01:15:48]} {[%emt 00:04:19]}
25. f5 {[%clk 00:56:09]} {[%emt 00:04:53]} Nc5 {[%clk 01:15:27]} {[%emt
00:00:50]} 26. Bxc5 {[%clk 00:56:05]} {[%emt 00:00:33]} bxc5 {[%clk 01:15:11]}
{[%emt 00:00:47]} 27. fxg6 {[%clk 00:55:54]} {[%emt 00:00:41]} hxg6 {[%clk
01:14:04]} {[%emt 00:01:37]} 28. Rh3 {[%clk 00:53:53]} {[%emt 00:02:30]} Qc6
{[%clk 01:11:19]} {[%emt 00:03:15]} 29. e5 {[%clk 00:51:18]} {[%emt 00:03:06]}
Qe4 {[%clk 01:08:49]} {[%emt 00:03:00]} 30. Qc3 {[%clk 00:43:28]} {[%emt
00:08:19]} Rab8 {[%clk 01:04:31]} {[%emt 00:04:47]} 31. e6 {[%clk 00:42:15]}
{[%emt 00:01:44]} f6 {[%clk 01:04:33]} {[%emt 00:00:28]} 32. Qd3 {[%clk
00:37:47]} {[%emt 00:04:59]} Qxd3 {[%clk 01:04:15]} {[%emt 00:00:48]} 33. Rdxd3
{[%clk 00:37:15]} {[%emt 00:01:02]} Rb6 {[%clk 01:03:50]} {[%emt 00:00:55]} 34.
Rhe3 {[%clk 00:36:49]} {[%emt 00:00:56]} Kg7 {[%clk 01:01:20]} {[%emt
00:03:01]} 35. g4 {[%clk 00:34:33]} {[%emt 00:02:44]} g5 {[%clk 00:59:17]}
{[%emt 00:02:33]} 36. Kf2 {[%clk 00:32:45]} {[%emt 00:02:18]} Kg6 {[%clk
00:59:06]} {[%emt 00:00:42]} 37. Rd5 {[%clk 00:32:41]} {[%emt 00:00:34]} Rc6
{[%clk 00:58:52]} {[%emt 00:00:45]} 38. Ke2 {[%clk 00:32:34]} {[%emt 00:00:37]}
c4 {[%clk 00:58:05]} {[%emt 00:01:17]} 39. Kd2 {[%clk 00:32:17]} {[%emt
00:00:46]} f5 {[%clk 00:52:30]} {[%emt 00:06:05]} 40. Rxf5 {[%clk 00:31:24]}
{[%emt 00:01:23]} c3+ {[%clk 00:51:48]} {[%emt 00:01:12]} 41. Kc2 {[%clk
00:30:29]} {[%emt 00:01:25]} Rc4 {[%clk 00:51:03]} {[%emt 00:01:15]} 42. Rxc3
{[%clk 00:30:02]} {[%emt 00:00:57]} Rxg4 {[%clk 00:51:17]} {[%emt 00:00:16]} 43.
Rf2 {[%clk 00:29:48]} {[%emt 00:00:44]} Rh4 {[%clk 00:51:14]} {[%emt 00:00:32]}
44. Rc8 {[%clk 00:29:47]} {[%emt 00:00:32]} Rhh8 {[%clk 00:51:13]} {[%emt
00:00:31]} 45. Rxd8 {[%clk 00:30:12]} {[%emt 00:00:05]} Rxd8 {[%clk 00:51:32]}
46. Kc3 {[%clk 00:30:40]} {[%emt 00:00:13]} g4 {[%clk 00:50:56]} {[%emt
00:01:06]} 47. Kc4 {[%clk 00:30:56]} {[%emt 00:00:14]} 1-0

[Event "NJSK 2022 Jeugd C"]
[Site "Almelo, Netherlands"]
[Date "2022.05.05"]
[Round "6.8"]
[White "Zecha, Oscar"]
[Black "Arnold, Rhys"]
[Result "1-0"]
[TimeControl "90min + 30sec/move"]
[WhiteElo "1826"]
[BlackElo "1846"]

1. d4 {[%clk 01:30:58]} {[%emt 00:00:01]} d5 {[%clk 01:30:56]} {[%emt
00:00:05]} 2. c4 {[%clk 01:31:26]} {[%emt 00:00:02]} c6 {[%clk 01:31:22]}
{[%emt 00:00:04]} 3. Nf3 {[%clk 01:31:52]} {[%emt 00:00:04]} Nf6 {[%clk
01:31:47]} {[%emt 00:00:05]} 4. e3 {[%clk 01:32:18]} {[%emt 00:00:04]} e6
{[%clk 01:31:04]} {[%emt 00:01:13]} 5. b3 {[%clk 01:32:44]} {[%emt 00:00:04]}
Nbd7 {[%clk 01:27:16]} {[%emt 00:04:18]} 6. Bd3 {[%clk 01:28:25]} {[%emt
00:04:49]} Bd6 {[%clk 01:24:05]} {[%emt 00:03:40]} 7. Bb2 {[%clk 01:28:00]}
{[%emt 00:00:56]} dxc4 {[%clk 01:21:17]} {[%emt 00:03:18]} 8. Bxc4 {[%clk
01:23:16]} {[%emt 00:05:14]} Qc7 {[%clk 01:19:42]} {[%emt 00:02:06]} 9. h3
{[%clk 01:19:21]} {[%emt 00:04:25]} O-O {[%clk 01:19:10]} {[%emt 00:01:02]} 10.
O-O {[%clk 01:19:28]} {[%emt 00:00:23]} b6 {[%clk 01:17:22]} {[%emt 00:02:19]}
11. Nbd2 {[%clk 01:16:28]} {[%emt 00:03:29]} Bb7 {[%clk 01:17:33]} {[%emt
00:00:19]} 12. Rc1 {[%clk 01:15:49]} {[%emt 00:01:09]} Rad8 {[%clk 01:17:28]}
{[%emt 00:00:36]} 13. Qc2 {[%clk 01:11:12]} {[%emt 00:05:07]} e5 {[%clk
01:15:40]} {[%emt 00:02:17]} 14. Bd3 {[%clk 01:05:27]} {[%emt 00:06:14]} exd4
{[%clk 01:15:15]} {[%emt 00:00:56]} 15. Nxd4 {[%clk 01:01:46]} {[%emt
00:04:11]} Ne5 {[%clk 01:11:23]} {[%emt 00:04:22]} 16. Be2 {[%clk 01:01:13]}
{[%emt 00:01:01]} Nd5 {[%clk 01:08:01]} {[%emt 00:03:54]} 17. a3 {[%clk
00:56:33]} {[%emt 00:05:11]} Rfe8 {[%clk 00:54:25]} {[%emt 00:14:05]} 18. N2f3
{[%clk 00:54:48]} {[%emt 00:02:15]} Rc8 {[%clk 00:50:22]} {[%emt 00:04:33]} 19.
Nf5 {[%clk 00:49:48]} {[%emt 00:05:30]} Nxf3+ {[%clk 00:50:18]} {[%emt
00:00:34]} 20. Bxf3 {[%clk 00:50:03]} {[%emt 00:00:14]} Be5 {[%clk 00:49:32]}
{[%emt 00:01:17]} 21. Bxd5 {[%clk 00:43:21]} {[%emt 00:07:12]} cxd5 {[%clk
00:44:26]} {[%emt 00:05:36]} 22. Qxc7 {[%clk 00:42:02]} {[%emt 00:01:49]} Bxc7
{[%clk 00:43:46]} {[%emt 00:01:10]} 23. Nxg7 {[%clk 00:38:44]} {[%emt
00:03:48]} Red8 {[%clk 00:42:53]} {[%emt 00:01:23]} 24. Nf5 {[%clk 00:37:31]}
{[%emt 00:01:43]} Bd6 {[%clk 00:40:43]} {[%emt 00:02:40]} 25. Rxc8 {[%clk
00:32:17]} {[%emt 00:05:44]} Bxc8 {[%clk 00:41:08]} {[%emt 00:00:05]} 26. Nxd6
{[%clk 00:32:32]} {[%emt 00:00:15]} Rxd6 {[%clk 00:41:34]} {[%emt 00:00:04]} 27.
Rc1 {[%clk 00:32:39]} {[%emt 00:00:22]} Rd8 {[%clk 00:41:58]} {[%emt 00:00:07]}
28. Bf6 {[%clk 00:32:13]} {[%emt 00:00:56]} Re8 {[%clk 00:42:11]} {[%emt
00:00:17]} 29. Rc7 {[%clk 00:32:31]} {[%emt 00:00:12]} a6 {[%clk 00:41:48]}
{[%emt 00:00:53]} 30. Rc6 {[%clk 00:32:30]} {[%emt 00:00:31]} b5 {[%clk
00:42:12]} {[%emt 00:00:06]} 31. Rd6 {[%clk 00:32:33]} {[%emt 00:00:27]} Bb7
{[%clk 00:42:14]} {[%emt 00:00:29]} 32. Rd7 {[%clk 00:32:23]} {[%emt 00:00:39]}
Bc8 {[%clk 00:39:19]} {[%emt 00:03:25]} 33. Rxd5 {[%clk 00:31:15]} {[%emt
00:01:38]} h6 {[%clk 00:39:05]} {[%emt 00:00:44]} 34. h4 {[%clk 00:27:38]}
{[%emt 00:04:06]} Be6 {[%clk 00:39:03]} {[%emt 00:00:33]} 35. Rd3 {[%clk
00:27:20]} {[%emt 00:00:47]} h5 {[%clk 00:38:55]} {[%emt 00:00:39]} 36. b4
{[%clk 00:26:51]} {[%emt 00:00:59]} Kh7 {[%clk 00:39:02]} {[%emt 00:00:22]} 37.
Rd6 {[%clk 00:26:50]} {[%emt 00:00:31]} Ra8 {[%clk 00:38:54]} {[%emt 00:00:38]}
38. e4 {[%clk 00:25:37]} {[%emt 00:01:43]} a5 {[%clk 00:37:03]} {[%emt
00:02:22]} 39. f4 {[%clk 00:24:35]} {[%emt 00:01:31]} axb4 {[%clk 00:37:07]}
{[%emt 00:00:27]} 40. axb4 {[%clk 00:24:33]} {[%emt 00:00:32]} Bc4 {[%clk
00:36:46]} {[%emt 00:00:51]} 41. f5 {[%clk 00:23:19]} {[%emt 00:01:43]} Re8
{[%clk 00:36:50]} {[%emt 00:00:26]} 42. Rd7 {[%clk 00:19:04]} {[%emt 00:04:46]}
Rg8 {[%clk 00:36:21]} {[%emt 00:00:58]} 43. Kf2 {[%clk 00:18:23]} {[%emt
00:01:11]} Rg4 {[%clk 00:35:02]} {[%emt 00:01:49]} 44. g3 {[%clk 00:17:17]}
{[%emt 00:01:37]} Rg8 {[%clk 00:34:01]} {[%emt 00:01:31]} 45. e5 {[%clk
00:16:52]} {[%emt 00:00:55]} Kh6 {[%clk 00:33:57]} {[%emt 00:00:33]} 46. Bg5+
{[%clk 00:15:32]} {[%emt 00:01:50]} Rxg5 {[%clk 00:34:16]} {[%emt 00:00:12]} 47.
hxg5+ {[%clk 00:14:11]} {[%emt 00:01:51]} Kxg5 {[%clk 00:34:42]} {[%emt
00:00:04]} 48. Rc7 {[%clk 00:09:59]} {[%emt 00:04:42]} Kxf5 {[%clk 00:33:38]}
{[%emt 00:01:34]} 49. Rc5 {[%clk 00:10:00]} {[%emt 00:00:29]} Ke4 {[%clk
00:33:11]} {[%emt 00:00:57]} 50. e6 {[%clk 00:07:57]} {[%emt 00:02:33]} fxe6
{[%clk 00:32:42]} {[%emt 00:00:59]} 51. Rxh5 {[%clk 00:08:05]} {[%emt
00:00:22]} e5 {[%clk 00:32:10]} {[%emt 00:01:02]} 52. Rh3 {[%clk 00:06:31]}
{[%emt 00:02:03]} Kf5 {[%clk 00:29:16]} {[%emt 00:03:24]} 53. Ke3 {[%clk
00:05:14]} {[%emt 00:01:48]} Bf1 {[%clk 00:28:29]} {[%emt 00:01:17]} 54. Rh5+
{[%clk 00:04:45]} {[%emt 00:00:59]} Kf6 {[%clk 00:28:22]} {[%emt 00:00:37]} 55.
Rh8 {[%clk 00:04:31]} {[%emt 00:00:44]} Bc4 {[%clk 00:27:03]} {[%emt 00:01:49]}
56. Ke4 {[%clk 00:04:12]} {[%emt 00:00:50]} Be2 {[%clk 00:22:42]} {[%emt
00:04:50]} 57. Re8 {[%clk 00:03:06]} {[%emt 00:01:36]} Kg5 {[%clk 00:23:04]}
{[%emt 00:00:07]} 58. Kxe5 {[%clk 00:03:03]} {[%emt 00:00:34]} Kg4 {[%clk
00:23:14]} {[%emt 00:00:19]} 59. Rg8+ {[%clk 00:03:13]} {[%emt 00:00:21]} Kf3
{[%clk 00:22:10]} {[%emt 00:01:34]} 60. Kd4 {[%clk 00:03:12]} {[%emt 00:00:31]}
Bc4 {[%clk 00:22:23]} {[%emt 00:00:16]} 61. Rg7 {[%clk 00:03:27]} {[%emt
00:00:15]} Ke2 {[%clk 00:22:43]} {[%emt 00:00:10]} 62. Kc5 {[%clk 00:03:48]}
{[%emt 00:00:10]} 1-0

[Event "NJSK 2022 Jeugd C"]
[Site "Almelo, Netherlands"]
[Date "2022.05.05"]
[Round "6.9"]
[White "Folkers, Sono"]
[Black "Agarwal, Pranav"]
[Result "0-1"]
[TimeControl "90min + 30sec/move"]
[WhiteElo "1519"]
[BlackElo "1531"]

1. d4 {[%clk 01:30:57]} {[%emt 00:00:02]} Nf6 {[%clk 01:30:53]} {[%emt
00:00:08]} 2. Nf3 {[%clk 01:31:01]} {[%emt 00:00:25]} e6 {[%clk 01:31:14]}
{[%emt 00:00:09]} 3. Bg5 {[%clk 01:31:23]} {[%emt 00:00:07]} c5 {[%clk
01:30:42]} {[%emt 00:01:03]} 4. e4 {[%clk 01:31:26]} {[%emt 00:00:27]} Be7
{[%clk 01:30:16]} {[%emt 00:00:56]} 5. Bd3 {[%clk 01:28:41]} {[%emt 00:03:15]}
c4 {[%clk 01:29:03]} {[%emt 00:01:43]} 6. Bxc4 {[%clk 01:24:18]} {[%emt
00:04:53]} Nxe4 {[%clk 01:29:06]} {[%emt 00:00:26]} 7. Be3 {[%clk 01:23:53]}
{[%emt 00:00:56]} d5 {[%clk 01:26:48]} {[%emt 00:02:49]} 8. Bd3 {[%emt
00:01:54]} O-O {[%clk 01:25:36]} {[%emt 00:00:10]} 9. Nbd2 {[%clk 01:22:36]}
{[%emt 00:01:56]} f5 {[%clk 01:24:51]} {[%emt 00:01:15]} 10. Bf4 {[%clk
01:15:21]} {[%emt 00:07:44]} g5 {[%clk 01:19:28]} {[%emt 00:05:53]} 11. Be5
{[%clk 01:15:16]} {[%emt 00:00:35]} g4 {[%clk 01:19:06]} {[%emt 00:00:52]} 12.
Ng1 {[%clk 01:15:32]} {[%emt 00:00:14]} Nc6 {[%clk 01:19:01]} {[%emt 00:00:36]}
13. g3 {[%clk 01:13:01]} {[%emt 00:03:00]} Nxe5 {[%clk 01:18:37]} {[%emt
00:00:53]} 14. dxe5 {[%clk 01:12:54]} {[%emt 00:00:37]} Qb6 {[%clk 01:18:01]}
{[%emt 00:01:07]} 15. Bxe4 {[%clk 01:11:42]} {[%emt 00:01:41]} fxe4 {[%clk
01:16:17]} {[%emt 00:02:15]} 16. Qxg4+ {[%clk 01:10:54]} {[%emt 00:01:18]} Kh8
{[%clk 01:16:26]} {[%emt 00:00:21]} 17. O-O-O {[%clk 01:08:10]} {[%emt
00:03:13]} Bd7 {[%clk 01:11:46]} {[%emt 00:05:11]} 18. Nh3 {[%clk 01:05:03]}
{[%emt 00:03:37]} Rg8 {[%clk 01:07:40]} {[%emt 00:04:36]} 19. Qh5 {[%clk
01:04:13]} {[%emt 00:01:19]} a5 {[%clk 01:03:26]} {[%emt 00:04:45]} 20. Nxe4
{[%clk 01:02:59]} {[%emt 00:01:44]} Be8 {[%clk 01:01:36]} {[%emt 00:02:21]} 21.
Qf3 {[%clk 01:01:04]} {[%emt 00:02:23]} dxe4 {[%clk 01:01:30]} {[%emt
00:00:36]} 22. Qxe4 {[%clk 01:01:18]} {[%emt 00:00:16]} Rc8 {[%clk 00:58:30]}
{[%emt 00:03:30]} 23. f4 {[%clk 01:00:35]} {[%emt 00:01:13]} Bg6 {[%clk
00:58:27]} {[%emt 00:00:38]} 24. f5 {[%clk 00:55:59]} {[%emt 00:05:02]} Bxf5
{[%clk 00:58:23]} {[%emt 00:00:34]} 25. Qe2 {[%clk 00:55:28]} {[%emt 00:01:01]}
Bxc2 {[%clk 00:52:41]} {[%emt 00:06:12]} 26. Qxc2 {[%clk 00:53:00]} {[%emt
00:02:59]} Qe3+ {[%clk 00:52:43]} {[%emt 00:00:27]} 27. Kb1 {[%clk 00:53:19]}
{[%emt 00:00:11]} Rxc2 {[%clk 00:52:51]} {[%emt 00:00:21]} 28. Kxc2 {[%clk
00:53:42]} {[%emt 00:00:07]} Qe4+ {[%clk 00:53:00]} {[%emt 00:00:21]} 29. Kb3
{[%clk 00:50:33]} {[%emt 00:03:40]} a4+ {[%clk 00:52:51]} {[%emt 00:00:39]} 0-1

[Event "NJSK 2022 Jeugd C"]
[Site "Almelo, Netherlands"]
[Date "2022.05.05"]
[Round "6.10"]
[White "Mohebbinezhad, Parsa"]
[Black "Venema, Maxime"]
[Result "0-1"]
[TimeControl "90min + 30sec/move"]
[WhiteElo "1600"]
[BlackElo "1614"]

1. e4 {[%clk 01:30:59]} c5 {[%clk 01:30:49]} {[%emt 00:00:12]} 2. Nf3 {[%clk
01:31:25]} {[%emt 00:00:04]} d6 {[%clk 01:31:03]} {[%emt 00:00:15]} 3. d4
{[%clk 01:31:51]} {[%emt 00:00:05]} cxd4 {[%clk 01:31:18]} {[%emt 00:00:15]} 4.
Nxd4 {[%clk 01:32:15]} {[%emt 00:00:06]} Nf6 {[%clk 01:31:36]} {[%emt
00:00:11]} 5. Nc3 {[%clk 01:32:37]} {[%emt 00:00:09]} a6 {[%clk 01:31:52]}
{[%emt 00:00:14]} 6. Bc4 {[%clk 01:32:55]} {[%emt 00:00:12]} e6 {[%clk
01:31:58]} {[%emt 00:00:23]} 7. Be3 {[%clk 01:33:05]} {[%emt 00:00:20]} b5
{[%clk 01:31:49]} {[%emt 00:00:40]} 8. Bb3 {[%clk 01:33:03]} {[%emt 00:00:31]}
b4 {[%clk 01:31:28]} {[%emt 00:00:51]} 9. Nce2 {[%clk 01:31:31]} {[%emt
00:02:03]} Nxe4 {[%clk 01:30:50]} {[%emt 00:01:07]} 10. f3 {[%clk 01:30:53]}
{[%emt 00:01:08]} Nc5 {[%clk 01:29:38]} {[%emt 00:01:42]} 11. Qd2 {[%clk
01:30:23]} {[%emt 00:01:00]} e5 {[%clk 01:28:38]} {[%emt 00:01:31]} 12. Bd5
{[%clk 01:25:40]} {[%emt 00:05:13]} exd4 {[%clk 01:26:43]} {[%emt 00:02:24]} 13.
Bg5 {[%clk 01:22:49]} {[%emt 00:03:21]} f6 {[%clk 01:25:34]} {[%emt 00:01:39]}
14. Bxa8 {[%clk 01:17:21]} {[%emt 00:05:58]} fxg5 {[%clk 01:25:54]} {[%emt
00:00:11]} 15. Qxb4 {[%clk 01:16:10]} {[%emt 00:01:41]} Bf5 {[%clk 01:20:25]}
{[%emt 00:05:59]} 16. Nxd4 {[%clk 01:15:28]} {[%emt 00:01:11]} Bxc2 {[%clk
01:16:04]} {[%emt 00:04:51]} 17. O-O {[%clk 01:13:55]} {[%emt 00:02:03]} Bg6
{[%clk 01:15:39]} {[%emt 00:00:55]} 18. Rfe1+ {[%clk 01:06:38]} {[%emt
00:07:47]} Be7 {[%clk 01:14:25]} {[%emt 00:01:44]} 19. Bc6+ {[%clk 01:01:41]}
{[%emt 00:05:27]} Nbd7 {[%clk 01:09:06]} {[%emt 00:05:49]} 20. Ne6 {[%clk
00:57:06]} {[%emt 00:05:06]} Nxe6 {[%clk 01:07:10]} {[%emt 00:02:25]} 21. Rxe6
{[%clk 00:57:24]} {[%emt 00:00:12]} O-O {[%clk 01:07:28]} {[%emt 00:00:13]} 22.
Rae1 {[%clk 00:57:15]} {[%emt 00:00:38]} Ne5 {[%clk 01:06:32]} {[%emt
00:01:27]} 23. R1xe5 {[%clk 00:54:06]} {[%emt 00:03:38]} dxe5 {[%clk 01:06:20]}
{[%emt 00:00:42]} 24. Qxe7 {[%clk 00:52:48]} {[%emt 00:01:48]} Qd1+ {[%clk
01:06:18]} {[%emt 00:00:32]} 25. Kf2 {[%clk 00:53:10]} {[%emt 00:00:08]} Qd2+
{[%clk 01:06:03]} {[%emt 00:00:46]} 26. Kg3 {[%clk 00:51:01]} {[%emt 00:02:38]}
Qe1+ {[%clk 01:06:21]} {[%emt 00:00:12]} 0-1

[Event "NJSK 2022 Jeugd C"]
[Site "Almelo, Netherlands"]
[Date "2022.05.05"]
[Round "6.11"]
[White "Bosma, Jonathan"]
[Black "Krylov, Philippe"]
[Result "0-1"]
[TimeControl "90min + 30sec/move"]
[WhiteElo "884"]
[BlackElo "1817"]

1. d4 {[%clk 01:30:58]} d5 {[%clk 01:30:56]} {[%emt 00:00:05]} 2. Bf4 {[%clk
01:31:19]} {[%emt 00:00:09]} Nf6 {[%clk 01:31:22]} {[%emt 00:00:05]} 3. Nf3
{[%clk 01:31:40]} {[%emt 00:00:08]} c5 {[%clk 01:31:46]} {[%emt 00:00:07]} 4.
e3 {[%clk 01:30:41]} {[%emt 00:01:28]} Nc6 {[%clk 01:32:07]} {[%emt 00:00:09]}
5. c4 {[%clk 01:30:44]} {[%emt 00:00:27]} cxd4 {[%clk 01:32:19]} {[%emt
00:00:18]} 6. exd4 {[%clk 01:30:45]} {[%emt 00:00:29]} Bg4 {[%clk 01:32:24]}
{[%emt 00:00:26]} 7. Be3 {[%clk 01:27:28]} {[%emt 00:03:46]} Qb6 {[%clk
01:30:17]} {[%emt 00:02:37]} 8. b3 {[%clk 01:22:24]} {[%emt 00:05:34]} Bxf3
{[%clk 01:29:01]} {[%emt 00:01:46]} 9. Qxf3 {[%clk 01:21:54]} {[%emt 00:01:00]}
Nxd4 {[%clk 01:28:39]} {[%emt 00:00:52]} 10. Bxd4 {[%clk 01:21:58]} {[%emt
00:00:26]} Qxd4 {[%clk 01:29:00]} {[%emt 00:00:09]} 11. Nc3 {[%clk 01:20:33]}
{[%emt 00:01:55]} Ne4 {[%clk 01:29:03]} {[%emt 00:00:28]} 12. Qd3 {[%clk
01:10:35]} {[%emt 00:10:27]} Qxf2+ {[%clk 01:26:53]} {[%emt 00:02:40]} 13. Kd1
{[%clk 01:10:38]} {[%emt 00:00:26]} Qb2 {[%clk 01:27:15]} {[%emt 00:00:09]} 14.
Nxe4 {[%clk 01:07:43]} {[%emt 00:03:25]} Qxa1+ {[%clk 01:27:39]} {[%emt
00:00:07]} 15. Ke2 {[%clk 01:07:30]} {[%emt 00:00:42]} dxe4 {[%clk 01:27:47]}
{[%emt 00:00:23]} 16. Qxe4 {[%clk 01:07:14]} {[%emt 00:00:45]} Rd8 {[%clk
01:27:38]} {[%emt 00:00:40]} 17. Qxb7 {[%clk 01:05:57]} {[%emt 00:01:45]} Qd1+
{[%clk 01:28:01]} {[%emt 00:00:08]} 18. Kf2 {[%clk 01:06:17]} {[%emt 00:00:08]}
Qd4+ {[%clk 01:28:06]} {[%emt 00:00:27]} 19. Kf3 {[%clk 01:05:51]} {[%emt
00:00:57]} Qd7 {[%clk 01:26:06]} {[%emt 00:02:30]} 20. Qxd7+ {[%clk 01:05:15]}
{[%emt 00:01:05]} Kxd7 {[%emt 00:00:10]} 21. c5 {[%clk 01:05:28]} {[%emt
00:00:14]} Kc7 {[%clk 01:26:20]} {[%emt 00:00:39]} 22. Bb5 {[%clk 01:05:08]}
{[%emt 00:00:49]} e6 {[%clk 01:26:36]} {[%emt 00:00:14]} 23. b4 {[%clk
01:04:48]} {[%emt 00:00:51]} Rb8 {[%clk 01:26:36]} {[%emt 00:00:30]} 24. a4
{[%clk 01:04:32]} {[%emt 00:00:46]} a6 {[%clk 01:26:42]} {[%emt 00:00:25]} 25.
Bxa6 {[%clk 01:04:33]} {[%emt 00:00:28]} Rxb4 {[%clk 01:27:06]} {[%emt
00:00:06]} 26. Bb5 {[%clk 01:04:56]} {[%emt 00:00:06]} Bxc5 {[%clk 01:27:32]}
{[%emt 00:00:05]} 27. Rc1 {[%clk 01:03:43]} {[%emt 00:01:44]} Kb6 {[%clk
01:27:48]} {[%emt 00:00:14]} 28. Rd1 {[%clk 01:03:51]} {[%emt 00:00:21]} Rxb5
{[%clk 01:27:30]} {[%emt 00:00:48]} 29. axb5 {[%clk 01:04:15]} {[%emt
00:00:06]} Kxb5 {[%clk 01:27:58]} {[%emt 00:00:03]} 30. Rd7 {[%clk 01:04:15]}
{[%emt 00:00:30]} Rf8 {[%clk 01:28:23]} {[%emt 00:00:04]} 31. Ke4 {[%clk
01:04:31]} {[%emt 00:00:14]} Kc6 {[%clk 01:28:48]} {[%emt 00:00:06]} 32. Rd3
{[%clk 01:04:39]} {[%emt 00:00:20]} Rb8 {[%clk 01:29:06]} {[%emt 00:00:14]} 33.
h3 {[%clk 01:03:49]} {[%emt 00:01:20]} Rb4+ {[%clk 01:29:03]} {[%emt 00:00:32]}
34. Kf3 {[%clk 01:03:47]} {[%emt 00:00:31]} f6 {[%clk 01:29:23]} {[%emt
00:00:11]} 35. Rd8 {[%clk 01:03:56]} {[%emt 00:00:22]} Rd4 {[%clk 01:29:24]}
{[%emt 00:00:29]} 36. Rh8 {[%clk 01:03:25]} {[%emt 00:00:59]} h6 {[%clk
01:29:49]} {[%emt 00:00:06]} 37. Rg8 {[%clk 01:03:51]} {[%emt 00:00:04]} Rd7
{[%clk 01:30:15]} {[%emt 00:00:04]} 38. g4 {[%clk 01:03:43]} {[%emt 00:00:38]}
Kd5 {[%emt 00:00:07]} 39. Kf4 {[%clk 01:03:27]} {[%emt 00:00:46]} Bb4 {[%clk
01:30:31]} {[%emt 00:00:38]} 40. Kg3 {[%clk 01:01:18]} {[%emt 00:02:37]} e5
{[%clk 01:30:35]} {[%emt 00:00:27]} 41. Kh4 {[%clk 01:01:26]} {[%emt 00:00:22]}
e4 {[%clk 01:30:46]} {[%emt 00:00:20]} 42. Kh5 {[%clk 01:00:42]} {[%emt
00:01:13]} e3 {[%clk 01:30:47]} {[%emt 00:00:29]} 43. h4 {[%clk 01:00:42]}
{[%emt 00:00:30]} e2 {[%clk 01:31:13]} {[%emt 00:00:05]} 44. g5 {[%clk
01:00:58]} {[%emt 00:00:13]} e1=Q {[%clk 01:31:28]} {[%emt 00:00:16]} 45. gxh6
{[%clk 01:00:42]} {[%emt 00:00:44]} gxh6 {[%clk 01:31:50]} {[%emt 00:00:09]} 46.
Rg6 {[%clk 00:59:38]} {[%emt 00:01:34]} Qe2 {[%clk 01:31:59]} {[%emt 00:00:21]}
47. Kxh6 {[%clk 00:59:54]} {[%emt 00:00:13]} Bf8+ {[%clk 01:32:24]} {[%emt
00:00:06]} 48. Rg7 {[%clk 00:59:57]} {[%emt 00:00:27]} Rxg7 {[%clk 01:32:44]}
{[%emt 00:00:10]} 0-1